bitfinex-derivatives/quotes_ETHF0:USTF0_20241228
["timestamp","ask_amount","ask_price","bid_price","bid_amount"]
[1735413140822,1.57894,3399.1,3399.0,0.29474]
[1735413142225,1.2842,3399.1,3399.0,0.29474]
[1735413146832,1.57893,3399.1,3399.0,0.29474]
[1735413147526,1.2842,3399.1,3399.0,0.29474]
[1735413150638,1.57893,3399.1,3399.0,0.29474]
[1735413152235,1.2842,3399.1,3399.0,0.29474]
[1735413156644,1.57893,3399.1,3399.0,0.29474]
[1735413157540,0.29477,3398.9,3398.8,0.29476]
[1735413157735,3.2078,3398.9,3398.8,0.29476]
[1735413158336,3.50255,3398.9,3398.8,0.29476]
[1735413159939,0.29477,3398.8,3398.7,0.29476]
[1735413161241,3.50256,3398.9,3398.8,0.29476]
[1735413163549,0.29476,3398.9,3398.8,0.29476]
[1735413166251,0.29476,3398.9,3398.8,1.02350606]
[1735413172856,0.29476,3398.9,3398.8,0.29476]
[1735413175859,3.50256,3398.9,3398.8,0.29476]
[1735413177555,0.29476,3398.9,3398.8,0.29476]
[1735413178156,3.50256,3398.9,3398.8,0.29476]
[1735413179761,0.29476,3398.9,3398.8,0.29476]
[1735413179965,3.50256,3398.9,3398.8,0.29476]
[1735413181560,0.29476,3398.9,3398.8,0.29476]
[1735413181760,3.50256,3398.9,3398.8,0.29476]
[1735413182155,4.60569931,3399.0,3398.9,0.29475]
[1735413182357,4.60569931,3399.2,3398.9,0.72874606]
[1735413182559,4.60569931,3399.2,3399.1,1.02347606]
[1735413183763,3.2078,3399.3,3399.1,0.72874606]
[1735413183964,3.2078,3399.3,3399.2,0.29473]
[1735413185066,3.50252,3399.3,3399.2,0.29473]
[1735413189266,3.2078,3399.3,3399.2,0.29473]
[1735413189568,3.50252,3399.3,3399.2,0.29473]
[1735413191864,0.29472,3399.3,3399.2,0.29473]
[1735413194565,0.29472,3399.3,3399.1,0.72874606]
[1735413194566,3.50251,3399.4,3399.3,0.29472]
[1735413195262,8.10820931,3399.4,3399.3,0.29472]
[1735413195867,4.60569931,3399.4,3399.3,0.29472]
[1735413196362,4.90040931,3399.4,3399.3,0.29472]
[1735413196563,3.50251,3399.4,3399.3,0.29472]
[1735413197267,3.2078,3399.4,3399.3,0.29472]
[1735413197567,3.2078,3399.4,3399.3,1.02346606]
[1735413197767,7.81349931,3399.4,3399.3,1.02346606]
[1735413198665,8.10820931,3399.4,3399.3,1.02346606]
[1735413198866,3.50251,3399.4,3399.3,1.02346606]
[1735413199066,3.50251,3399.4,3399.3,0.29472]
[1735413201668,3.2078,3399.4,3399.3,0.29472]
[1735413204867,3.2078,3399.4,3399.3,1.02346606]
[1735413205872,4.60569931,3399.7,3399.6,0.29469]
[1735413206075,4.60569931,3399.7,3399.6,1.02343606]
[1735413206678,8.10816931,3399.9,3399.8,0.29467]
[1735413207678,4.90036931,3399.9,3399.8,0.29467]
[1735413214383,4.60569931,3399.9,3399.8,1.02341606]
[1735413214773,4.90036931,3399.9,3399.8,1.02341606]
[1735413215981,0.29467,3399.9,3399.8,1.02341606]
[1735413218083,6.05179414,3399.9,3399.8,1.02341606]
[1735413221686,9.25959414,3399.9,3399.8,1.02341606]
[1735413223882,0.29467,3399.9,3399.8,1.02341606]
[1735413224087,3.50247,3399.9,3399.8,1.02341606]
[1735413225489,8.1371182,3399.9,3399.8,1.02341606]
[1735413226380,3.50247,3399.9,3399.8,1.02341606]
[1735413228592,0.29467,3399.9,3399.8,1.02341606]
[1735413228788,4.93106012,3399.9,3399.8,1.02341606]
[1735413229387,0.29467,3399.9,3399.8,1.02341606]
[1735413230596,0.29467,3399.9,3399.8,0.29467]
[1735413234000,6.08798025,3399.9,3399.8,0.29467]
[1735413234203,5.79331025,3399.9,3399.8,0.29467]
[1735413234997,11.06737025,3400.0,3399.7,0.72874606]
[1735413235203,11.06737025,3400.0,3399.9,0.29467]
[1735413236405,5.27406,3400.0,3399.9,0.29467]
[1735413241304,11.07092637,3400.0,3399.9,0.29467]
[1735413241898,0.29467,3399.9,3399.5,4.63096312]
[1735413242100,0.29467,3399.9,3399.8,0.29467]
[1735413243706,6.09247524,3399.9,3399.8,0.29467]
[1735413246309,5.79780524,3399.9,3399.8,0.29467]
[1735413247412,6.09247524,3399.9,3399.8,0.29467]
[1735413249312,0.29467,3399.9,3399.8,0.29467]
[1735413255411,4.9794,3400.0,3399.6,0.73673]
[1735413255412,3.2078,3400.0,3399.9,0.29467]
[1735413255810,3.2078,3400.0,3399.9,1.02341606]
[1735413256407,7.84881366,3400.0,3399.9,13.77169524]
[1735413257516,3.2078,3400.0,3399.9,6.83193012]
[1735413257714,4.64101366,3400.3,3400.2,0.29464]
[1735413257907,4.64101366,3400.3,3400.2,1.02338606]
[1735413258811,4.64101366,3400.3,3400.2,1.44148606]
[1735413259013,0.29461,3400.6,3400.2,6.95536012]
[1735413259214,0.29461,3400.6,3400.5,1.02335606]
[1735413259717,5.21611366,3400.7,3400.2,5.80851406]
[1735413259921,6.68135972,3400.7,3400.2,5.80851406]
[1735413260110,6.68135972,3400.7,3400.2,6.10314406]
[1735413260111,0.29463,3400.3,3400.2,6.10314406]
[1735413260311,0.29463,3400.3,3400.2,4.91969592]
[1735413260714,0.29463,3400.3,3400.2,4.62505592]
[1735413260715,3.50243,3400.3,3400.2,4.62505592]
[1735413261217,3.50243,3400.3,3400.2,4.91969592]
[1735413261613,3.2078,3400.3,3400.1,0.72874606]
[1735413261813,1.95644,3400.2,3400.1,1.02338606]
[1735413262014,1.6618,3400.2,3400.1,1.02338606]
[1735413262318,1.95644,3400.2,3400.1,1.02338606]
[1735413263423,1.6618,3400.2,3400.1,0.29464]
[1735413263814,1.95644,3400.2,3400.1,0.29464]
[1735413264522,0.29466,3400.0,3399.9,4.91971592]
[1735413265417,0.29467,3399.9,3399.8,1.02341606]
[1735413265616,0.29467,3399.9,3399.7,1.155]
[1735413265617,6.30281366,3400.2,3399.6,4.62505592]
[1735413265815,0.29468,3399.7,3399.6,4.91974592]
[1735413266617,0.29468,3399.7,3399.5,4.62505592]
[1735413266618,0.29469,3399.6,3399.5,4.62505592]
[1735413266923,1.44419,3399.6,3399.5,4.62505592]
[1735413267623,0.29472,3399.3,3399.2,0.29472]
[1735413267812,0.29472,3399.3,3399.0,4.62505592]
[1735413267813,0.72874606,3399.3,3399.0,4.62505592]
[1735413268018,3.50253,3399.1,3399.0,4.62505592]
[1735413268219,4.23127606,3399.1,3399.0,3.71775592]
[1735413269121,0.29474,3399.0,3398.5,0.29478]
[1735413269324,0.29478,3398.7,3398.5,0.29478]
[1735413269723,0.5969,3398.6,3398.5,0.29478]
[1735413271424,0.85535,3399.0,3398.9,0.29475]
[1735413272522,0.29476,3398.9,3398.5,1.65818229]
[1735413273328,0.29476,3398.9,3398.7,0.29476]
[1735413275525,0.5606,3399.0,3398.7,0.29476]
[1735413275727,0.29476,3398.8,3398.7,0.29476]
[1735413276126,3.2078,3399.1,3399.0,0.29474]
[1735413276321,4.64101366,3399.4,3399.3,0.29472]
[1735413277125,0.29471,3399.4,3399.3,0.29472]
[1735413278426,0.5993,3399.5,3399.0,1.65818229]
[1735413278633,3.2078,3399.3,3398.6,6.93758388]
[1735413278830,1.1557,3399.2,3398.8,0.29476]
[1735413279031,0.29475,3399.0,3398.8,0.29476]
[1735413279531,0.6028,3398.9,3398.8,0.29476]
[1735413279733,0.89755,3398.9,3398.8,0.29476]
[1735413281120,0.6028,3398.9,3398.5,3.2078]
[1735413281331,0.29477,3398.8,3398.7,0.29477]
[1735413281628,0.29478,3398.6,3398.1,10.14538388]
[1735413281930,0.2948,3398.4,3398.3,0.2948]
[1735413282434,0.8742,3398.4,3398.3,0.2948]
[1735413289439,0.5794,3398.4,3398.3,0.2948]
[1735413293435,0.8742,3398.4,3398.3,0.2948]
[1735413297844,1.4393,3398.4,3398.3,0.2948]
[1735413306239,1.1445,3398.4,3398.3,0.2948]
[1735413306439,3.2078,3398.8,3398.2,1.65818229]
[1735413306638,3.2078,3398.8,3398.7,0.29477]
[1735413306837,1.6645,3399.0,3398.9,0.29475]
[1735413308646,1.1366,3399.0,3398.9,0.29475]
[1735413311148,0.29472,3399.3,3399.2,0.29473]
[1735413311346,1.39752,3399.3,3399.2,0.29473]
[1735413311648,1.1028,3399.3,3399.2,0.29473]
[1735413312150,1.39752,3399.3,3399.2,0.29473]
[1735413314046,1.39752,3399.3,3398.9,0.29475]
[1735413314245,1.1028,3399.3,3398.7,10.14538388]
[1735413314446,0.29476,3398.8,3398.7,6.93758388]
[1735413314650,0.29476,3398.8,3398.7,4.35848388]
[1735413314850,0.29476,3398.8,3398.7,3.49878388]
[1735413315348,0.29476,3398.8,3398.7,3.79355388]
[1735413315547,4.64101366,3398.8,3398.7,0.29477]
[1735413316657,4.93574366,3399.2,3399.1,0.29473]
[1735413317849,0.29474,3399.1,3398.7,0.29477]
[1735413318049,0.29474,3399.1,3399.0,0.29474]
[1735413319850,4.64101366,3399.2,3398.7,0.29477]
[1735413320151,4.64101366,3399.1,3399.0,0.29474]
[1735413321155,6.09598708,3399.3,3398.8,2.39509229]
[1735413321156,0.29472,3399.3,3399.2,0.29473]
[1735413324362,0.29476,3398.9,3398.8,0.29475]
[1735413324756,0.5404,3399.2,3398.7,3.2078]
[1735413325060,0.81714,3399.1,3399.0,0.29473]
[1735413326959,0.29474,3399.1,3399.0,0.29473]
[1735413328457,0.5652,3399.3,3398.7,3.2078]
[1735413328663,0.29475,3399.0,3398.9,0.29474]
[1735413330764,0.85185,3399.0,3398.9,0.29474]
[1735413331860,0.5571,3399.0,3398.6,0.3226]
[1735413332063,0.29477,3398.7,3398.6,0.3226]
[1735413332262,0.29478,3398.6,3398.5,0.29478]
[1735413332558,0.5397,3398.6,3398.5,0.29478]
[1735413333065,0.83448,3398.6,3398.5,0.29478]
[1735413335464,0.5397,3398.6,3398.4,3.2078]
[1735413335765,1.37809,3398.5,3398.4,3.2078]
[1735413336163,1.37809,3398.5,3398.4,3.5026]
[1735413336365,1.37809,3398.5,3398.4,3.2078]
[1735413336564,1.37809,3398.5,3398.4,3.5026]
[1735413337162,1.37809,3398.5,3398.4,0.2948]
[1735413340661,1.0833,3398.5,3398.2,0.555]
[1735413340868,0.2948,3398.4,3398.3,0.2948]
[1735413341366,0.29481,3398.3,3398.2,0.29481]
[1735413341862,0.29484,3397.9,3397.8,3.50264]
[1735413342059,0.29484,3397.9,3397.8,3.2078]
[1735413342260,0.29485,3397.8,3397.7,9.25302016]
[1735413342559,1.38355,3397.8,3397.7,9.25302016]
[1735413342967,0.29486,3397.7,3397.6,0.83976]
[1735413343161,0.29487,3397.7,3397.6,0.29486]
[1735413344863,0.29486,3397.7,3397.6,0.29486]
[1735413345572,0.29486,3397.7,3397.4,0.5449]
[1735413345573,1.0887,3397.8,3397.4,0.5449]
[1735413345765,0.29487,3397.5,3397.4,0.83978]
[1735413346164,0.29486,3397.7,3397.6,0.29486]
[1735413346469,0.29487,3397.6,3397.5,0.29487]
[1735413348173,4.2965,3397.8,3397.4,0.5449]
[1735413348375,0.29487,3397.5,3397.4,0.5449]
[1735413348571,0.29489,3397.3,3397.2,0.29489]
[1735413348765,0.73716,3397.7,3397.1,0.5296]
[1735413349071,0.73717,3397.6,3397.0,3.2078]
[1735413349272,0.29491,3397.1,3397.0,3.2078]
[1735413350677,0.29493,3396.9,3396.8,0.29493]
[1735413350880,0.29493,3396.8,3396.7,0.84544]
[1735413352475,0.29493,3396.8,3396.7,0.5505]
[1735413353778,3.2078,3397.1,3396.6,0.29495]
[1735413353779,0.29494,3396.7,3396.6,0.29495]
[1735413353972,1.40624,3396.7,3396.6,0.29495]
[1735413354876,0.29495,3396.6,3396.5,0.29495]
[1735413357572,1.1113,3396.7,3396.4,0.5467]
[1735413357777,0.29496,3396.5,3396.4,0.5467]
[1735413362283,3.50274,3396.8,3396.7,0.29494]
[1735413362481,3.2078,3397.3,3396.7,0.29494]
[1735413362684,3.50269,3397.3,3397.2,0.2949]
[1735413362879,0.2949,3397.2,3397.1,0.2949]
[1735413363980,3.50269,3397.3,3397.2,0.2949]
[1735413364278,0.2949,3397.2,3397.1,0.2949]
[1735413366186,3.5027,3397.3,3397.0,0.29492]
[1735413366487,0.29492,3397.1,3397.0,0.29491]
[1735413366886,3.2078,3397.3,3396.9,0.5699]
[1735413366887,0.29492,3397.0,3396.9,0.86482]
[1735413367383,0.5219,3397.2,3396.5,3.94521]
[1735413367384,0.73728,3397.1,3396.5,3.2078]
[1735413367584,0.29495,3396.6,3396.5,3.50276]
[1735413367883,0.29495,3396.6,3396.4,0.5306]
[1735413368084,0.295,3396.1,3396.0,4.0444]
[1735413369694,0.295,3396.1,3396.0,3.2078]
[1735413370387,3.94524,3396.4,3395.7,1.0605]
[1735413370586,0.29502,3395.8,3395.7,1.35553]
[1735413371094,0.29502,3395.8,3395.7,1.0605]
[1735413371591,0.29502,3395.8,3395.7,1.35553]
[1735413373188,0.29499,3396.2,3396.1,0.29499]
[1735413374289,0.29498,3396.3,3396.2,0.29498]
[1735413374589,0.29499,3396.2,3396.1,0.29499]
[1735413374990,0.5166,3396.5,3396.0,3.2078]
[1735413375293,0.29499,3396.2,3396.1,0.29499]
[1735413375994,3.2078,3396.8,3396.0,3.2078]
[1735413376298,3.50274,3396.8,3396.6,0.29495]
[1735413376496,3.50274,3396.8,3396.7,0.5384]
[1735413377990,3.2078,3396.8,3396.7,0.83334]
[1735413378792,3.50273,3396.8,3396.7,0.83334]
[1735413379400,3.50273,3396.8,3396.7,0.5384]
[1735413380592,3.2078,3396.8,3396.5,0.29496]
[1735413380794,3.2078,3396.8,3396.3,0.5293]
[1735413380995,0.29497,3396.4,3396.3,0.5293]
[1735413381393,0.29497,3396.4,3396.1,0.5389]
[1735413381394,1.134,3396.6,3396.1,0.5389]
[1735413381605,0.29499,3396.2,3396.1,0.83389]
[1735413381897,0.29499,3396.2,3396.1,0.5389]
[1735413382193,0.295,3396.1,3396.0,3.5028]
[1735413382793,0.295,3396.1,3396.0,0.295]
[1735413383999,3.2078,3396.3,3395.8,0.5632]
[1735413384191,0.29501,3395.9,3395.8,0.5632]
[1735413384397,0.29504,3395.6,3395.5,0.29504]
[1735413384900,0.29505,3395.5,3395.4,4.07115]
[1735413387095,0.29504,3395.7,3395.6,0.29503]
[1735413387295,3.2078,3396.3,3395.5,0.73762]
[1735413387494,0.29501,3396.0,3395.9,0.295]
[1735413390700,0.29502,3395.9,3395.8,0.29501]
[1735413391202,0.29503,3395.8,3395.7,0.29502]
[1735413394510,0.29502,3395.9,3395.8,0.29502]
[1735413394705,3.7566,3396.3,3395.5,0.73762]
[1735413394909,3.2078,3396.3,3395.8,3.2078]
[1735413395104,3.2078,3396.3,3396.2,0.29499]
[1735413396209,0.29497,3396.5,3396.0,1.0643]
[1735413396411,0.29497,3396.5,3396.4,0.29497]
[1735413398012,0.29497,3396.4,3396.3,0.29497]
[1735413398314,0.29497,3396.5,3396.4,0.29496]
[1735413400404,3.2078,3396.7,3396.0,1.0643]
[1735413400615,0.29496,3396.6,3396.5,0.29495]
[1735413402714,0.29497,3396.5,3396.4,0.29496]
[1735413406516,0.5356,3396.6,3396.0,5.68961119]
[1735413406716,0.29498,3396.4,3396.3,0.29497]
[1735413407419,0.5356,3396.6,3395.9,4.62531119]
[1735413407617,0.29498,3396.4,3396.3,0.29497]
[1735413408524,0.5356,3396.6,3396.0,0.5319]
[1735413408725,0.29499,3396.3,3396.2,0.29498]
[1735413410226,0.295,3396.1,3396.0,0.82689]
[1735413410616,3.2078,3396.2,3395.9,4.62531119]
[1735413410820,0.295,3396.0,3395.9,4.92031119]
[1735413411016,0.295,3396.0,3395.9,0.295]
[1735413411829,1.3905,3396.1,3396.0,0.295]
[1735413413321,1.0955,3396.1,3396.0,0.295]
[1735413413521,3.5028,3396.2,3396.1,0.295]
[1735413414028,3.2078,3396.2,3395.8,5.18251119]
[1735413414228,3.2078,3396.2,3396.0,0.295]
[1735413414229,0.295,3396.1,3396.0,0.295]
[1735413416125,3.2078,3396.2,3396.1,0.295]
[1735413417430,0.295,3396.1,3396.0,0.295]
[1735413417625,0.8641,3396.1,3396.0,0.295]
[1735413419127,0.5691,3396.1,3395.8,0.5572]
[1735413419332,0.29501,3395.9,3395.8,0.5572]
[1735413419830,0.29502,3395.8,3395.7,4.92034119]
[1735413420033,0.82462,3395.8,3395.7,4.92034119]
[1735413421028,0.82462,3395.8,3395.7,4.62531119]
[1735413421626,0.29503,3395.7,3395.6,4.92034119]
[1735413422923,0.82463,3395.8,3395.7,0.29503]
[1735413423121,4.64101366,3396.1,3395.5,5.18121119]
[1735413423326,4.64101366,3396.1,3396.0,0.295]
[1735413423526,4.93601366,3396.1,3396.0,0.295]
[1735413424035,0.29501,3396.0,3395.9,0.29501]
[1735413424632,3.2078,3396.2,3395.8,4.62531119]
[1735413424831,1.35931,3395.9,3395.8,4.62531119]
[1735413425234,0.29502,3395.8,3395.7,0.29503]
[1735413425434,0.84722,3395.8,3395.7,0.29503]
[1735413425830,0.5522,3395.8,3395.6,4.62531119]
[1735413426029,0.29503,3395.7,3395.6,4.92034119]
[1735413428739,0.29503,3395.7,3395.6,4.62531119]
[1735413430129,0.5522,3395.8,3395.5,5.47625119]
[1735413430433,0.29504,3395.7,3395.6,0.29503]
[1735413434538,0.29504,3395.7,3395.5,5.18121119]
[1735413434539,0.5522,3395.8,3395.5,0.5559]
[1735413434734,4.64101366,3396.0,3395.5,0.5559]
[1735413435041,4.93601366,3396.0,3395.9,0.29501]
[1735413435841,0.295,3396.0,3395.9,0.29501]
[1735413437037,4.64101366,3396.2,3395.6,5.92270119]
[1735413437235,0.29501,3396.1,3396.0,0.295]
[1735413437731,4.64101366,3396.2,3396.1,0.295]
[1735413438338,4.64101366,3396.4,3396.0,0.5456]
[1735413438536,4.64101366,3396.4,3396.3,0.29498]
[1735413439529,3.2078,3396.5,3396.0,1.2831]
[1735413439530,3.2078,3396.5,3396.2,4.62531119]
[1735413439736,3.2078,3396.5,3396.4,0.29497]
[1735413440338,0.5433,3396.8,3396.4,0.29497]
[1735413440539,4.64101366,3396.9,3396.2,4.62531119]
[1735413440540,4.64101366,3396.9,3396.8,0.29493]
[1735413440735,4.93594366,3396.9,3396.8,0.29493]
[1735413441140,0.29493,3396.9,3396.8,0.29493]
[1735413441640,8.94901366,3397.0,3396.6,0.5458]
[1735413441831,7.84881366,3397.0,3396.9,0.29493]
[1735413442736,4.64101366,3397.2,3396.7,3.2078]
[1735413442940,4.64101366,3397.2,3397.1,0.29491]
[1735413443739,0.2949,3397.2,3397.1,0.29491]
[1735413443940,4.2904,3397.5,3396.8,5.18461119]
[1735413444142,0.29491,3397.1,3397.0,0.29491]
[1735413444637,4.2904,3397.5,3396.8,4.62531119]
[1735413444840,0.29492,3397.0,3396.9,0.29492]
[1735413445841,0.29491,3397.1,3396.9,0.29492]
[1735413446042,0.29491,3397.1,3397.0,0.29492]
[1735413446242,0.29491,3397.1,3396.9,0.29492]
[1735413446440,0.29491,3397.1,3397.0,0.29492]
[1735413447045,0.29492,3397.0,3396.9,0.29492]
[1735413447345,0.29491,3397.2,3397.0,0.29491]
[1735413447538,5.02761,3397.5,3397.0,0.29491]
[1735413447947,0.29492,3397.0,3396.9,0.29492]
[1735413448746,5.02761,3397.5,3396.9,0.29492]
[1735413448938,0.29491,3397.1,3396.9,0.29492]
[1735413449244,0.29493,3396.9,3396.8,0.85583]
[1735413449438,0.81742,3397.0,3396.9,0.29493]
[1735413460240,1.33322,3397.0,3396.9,0.29493]
[1735413468348,1.0383,3397.0,3396.9,0.29493]
[1735413468653,3.2078,3397.1,3397.0,0.29492]
[1735413470244,10.39729355,3398.4,3397.0,1.65818229]
[1735413470450,0.29483,3398.1,3397.7,0.29486]
[1735413470950,6.25551366,3398.3,3397.7,1.0592]
[1735413471147,0.29482,3398.2,3398.1,0.29482]
[1735413472552,0.29482,3398.2,3397.7,1.0618]
[1735413472746,0.29482,3398.2,3398.0,0.29482]
[1735413473747,0.29482,3398.1,3398.0,0.29482]
[1735413475258,0.29483,3398.0,3397.9,0.29483]
[1735413477258,0.29482,3398.1,3398.0,0.29483]
[1735413477553,0.5514,3398.3,3398.2,0.29481]
[1735413477855,3.2078,3398.4,3398.3,0.2948]
[1735413478452,0.5324,3398.6,3397.9,3.7714]
[1735413478648,0.5324,3398.6,3398.5,0.29479]
[1735413478847,0.29476,3398.9,3398.3,3.2078]
[1735413479150,3.50254,3399.1,3398.4,0.546]
[1735413479348,3.50254,3399.1,3398.8,0.29476]
[1735413479547,3.2078,3399.1,3398.8,0.29476]
[1735413479747,3.2078,3399.1,3398.5,0.5706]
[1735413479748,0.29475,3399.0,3398.7,0.29476]
[1735413479947,0.29476,3398.9,3398.6,0.29477]
[1735413480150,3.2078,3399.1,3398.5,0.5706]
[1735413480352,0.29478,3398.6,3398.3,3.2078]
[1735413480551,1.36979,3398.5,3398.3,3.5026]
[1735413480952,1.075,3398.5,3398.4,0.2948]
[1735413481257,1.075,3398.5,3398.3,3.2078]
[1735413481558,1.36979,3398.5,3398.3,3.5026]
[1735413481855,4.93577366,3398.9,3398.6,0.29477]
[1735413482055,0.29476,3398.8,3398.6,0.29477]
[1735413482858,0.29476,3398.8,3398.5,0.29478]
[1735413484258,1.6348,3399.0,3398.4,0.5706]
[1735413484559,0.29477,3398.7,3398.5,0.29478]
[1735413485354,1.6348,3399.0,3398.5,0.29478]
[1735413485558,0.29477,3398.8,3398.4,0.5706]
[1735413485765,1.6348,3399.0,3398.4,0.5706]
[1735413486060,1.6348,3399.0,3398.4,1.30759]
[1735413486261,1.92955,3399.0,3398.8,0.29476]
[1735413487249,1.6348,3399.0,3398.4,0.5706]
[1735413487554,0.29476,3398.9,3398.7,0.29476]
[1735413488352,1.6348,3399.0,3398.3,3.2078]
[1735413488552,0.29478,3398.6,3398.3,3.2078]
[1735413488859,1.6348,3399.0,3398.3,3.2078]
[1735413489063,0.2948,3398.4,3398.3,3.5026]
[1735413489863,0.73689,3398.9,3398.3,3.2078]
[1735413490061,0.73689,3398.9,3398.4,0.29479]
[1735413490259,0.29479,3398.5,3398.4,0.29479]
[1735413492062,0.29479,3398.5,3398.2,0.5529]
[1735413492262,0.29479,3398.5,3398.3,0.2948]
[1735413492463,0.2948,3398.4,3398.2,0.5529]
[1735413492661,0.8493,3398.4,3398.3,0.2948]
[1735413494556,0.2948,3398.3,3398.2,0.84771]
[1735413494764,0.8114,3398.3,3398.2,0.84771]
[1735413494964,0.5166,3398.3,3398.2,0.84771]
[1735413495167,0.8114,3398.3,3398.2,0.84771]
[1735413495661,0.5166,3398.3,3398.2,0.84771]
[1735413495961,0.5545,3398.4,3398.2,0.84771]
[1735413495962,0.29479,3398.5,3398.4,0.29479]
[1735413497053,0.29478,3398.6,3398.5,0.29478]
[1735413497764,0.29479,3398.5,3398.4,0.29479]
[1735413498559,0.29479,3398.5,3398.2,1.0847]
[1735413498560,0.5637,3398.7,3398.2,1.0847]
[1735413498762,0.29478,3398.6,3398.5,0.29478]
[1735413499356,0.5637,3398.7,3398.2,1.0847]
[1735413499661,0.5637,3398.7,3398.4,0.29479]
[1735413499858,0.29479,3398.5,3398.4,0.29479]
[1735413500064,0.29478,3398.6,3398.5,0.29479]
[1735413500256,0.29479,3398.5,3398.4,0.29479]
[1735413501559,0.5637,3398.7,3398.2,0.5529]
[1735413501765,0.29478,3398.6,3398.5,0.29478]
[1735413502766,0.5637,3398.7,3398.2,0.5529]
[1735413502968,0.29479,3398.5,3398.4,0.29479]
[1735413506260,0.29479,3398.6,3398.5,0.29478]
[1735413508769,0.83049,3398.6,3398.5,0.29478]
[1735413510270,0.29479,3398.5,3398.4,0.29479]
[1735413510474,0.5637,3398.7,3398.3,1.65818229]
[1735413510672,0.5637,3398.7,3398.6,0.29478]
[1735413510869,0.29479,3398.6,3398.3,0.2948]
[1735413511074,0.83459,3398.6,3398.3,0.2948]
[1735413512569,0.5398,3398.6,3398.2,0.5529]
[1735413512770,0.5398,3398.6,3398.4,0.29479]
[1735413512973,0.5398,3398.6,3398.5,0.29479]
[1735413514275,0.5452,3398.8,3398.7,0.29477]
[1735413514876,0.545,3399.0,3398.7,0.29477]
[1735413515077,0.5729,3399.1,3398.5,4.86598229]
[1735413515279,5.17811366,3399.2,3399.0,0.29474]
[1735413515577,5.17811366,3399.2,3399.1,0.5234]
[1735413516878,4.64101366,3399.2,3399.1,0.5234]
[1735413517178,4.64101366,3399.5,3399.4,0.29471]
[1735413518374,0.5371,3399.8,3399.6,0.29469]
[1735413519584,0.83177,3399.8,3399.5,0.29469]
[1735413519781,0.5371,3399.8,3399.3,0.29472]
[1735413519985,0.5371,3399.8,3399.5,0.29469]
[1735413520382,0.5371,3399.8,3399.6,0.29469]
[1735413520688,0.5371,3399.8,3399.5,0.29469]
[1735413520883,0.5371,3399.8,3399.3,0.29472]
[1735413521085,0.5371,3399.8,3399.7,0.29468]
[1735413521983,7.84881366,3399.9,3399.3,3.2078]
[1735413521984,3.2078,3399.9,3399.3,3.2078]
[1735413522784,3.2078,3399.9,3399.8,0.29467]
[1735413524887,1.0791,3400.0,3399.8,0.29467]
[1735413525085,0.83544,3400.2,3399.9,1.65818229]
[1735413525086,0.5408,3400.2,3399.9,1.65818229]
[1735413525291,5.71641366,3400.5,3400.4,0.29462]
[1735413525787,5.18461366,3400.5,3400.4,0.29462]
[1735413526178,4.64101366,3400.5,3400.4,0.29462]
[1735413526888,4.64101366,3400.5,3400.1,0.5691]
[1735413526889,3.7724,3400.7,3400.5,0.29461]
[1735413527188,3.7724,3400.7,3400.6,0.5337]
[1735413527588,3.7724,3400.7,3400.6,0.8283]
[1735413528292,4.067,3400.7,3400.6,0.5337]
[1735413529187,3.7724,3400.7,3400.6,0.5337]
[1735413529590,4.067,3400.7,3400.6,0.5337]
[1735413529785,3.7724,3400.7,3400.6,0.8283]
[1735413529986,3.7724,3400.7,3400.6,0.5337]
[1735413530688,4.067,3400.7,3400.6,0.5337]
[1735413532186,4.067,3400.7,3400.3,0.29463]
[1735413532187,0.29461,3400.5,3400.3,0.29463]
[1735413532388,0.29461,3400.6,3400.4,0.29462]
[1735413532681,4.067,3400.7,3400.4,0.29462]
[1735413532890,0.29461,3400.6,3400.4,0.29462]
[1735413533091,0.29461,3400.6,3400.3,0.29463]
[1735413533392,3.7724,3400.7,3400.3,0.29463]
[1735413533393,0.561,3400.5,3400.3,0.29463]
[1735413534093,0.561,3400.5,3400.2,0.569]
[1735413534391,0.29467,3399.9,3399.7,0.29468]
[1735413534790,1.0795,3399.8,3399.7,0.29468]
[1735413534989,1.0795,3399.8,3399.6,3.2078]
[1735413535189,0.81718,3399.7,3399.6,3.2078]
[1735413537189,3.94442,3400.2,3399.6,4.86598229]
[1735413537190,3.2078,3400.2,3399.6,4.86598229]
[1735413537387,0.29466,3400.0,3399.7,0.29468]
[1735413537583,0.29467,3399.9,3399.6,5.16067229]
[1735413537800,0.29468,3399.8,3399.6,3.2078]
[1735413538095,0.5652,3400.1,3399.6,3.2078]
[1735413538284,0.29467,3399.9,3399.6,3.50249]
[1735413539293,0.5443,3399.8,3399.6,3.50249]
[1735413539691,0.5443,3399.8,3399.6,3.2078]
[1735413539898,0.29468,3399.7,3399.6,3.2078]
[1735413543088,0.5443,3399.8,3399.4,0.5329]
[1735413543292,0.2947,3399.5,3399.2,3.50252]
[1735413543493,0.29471,3399.4,3399.2,4.05502]
[1735413544095,0.5701,3399.5,3399.2,3.7603]
[1735413544291,0.8648,3399.5,3399.3,0.29472]
[1735413545201,0.5701,3399.5,3399.2,3.7603]
[1735413545399,0.5701,3399.5,3399.4,0.29471]
[1735413545598,0.8648,3399.5,3399.4,0.29471]
[1735413545896,0.8648,3399.5,3399.2,3.7603]
[1735413546098,0.8648,3399.5,3399.3,0.29471]
[1735413546298,0.29471,3399.4,3399.3,0.29471]
[1735413547902,0.29472,3399.3,3399.2,3.2078]
[1735413548205,0.81392,3399.3,3399.2,3.2078]
[1735413548807,0.5192,3399.3,3399.2,3.2078]
[1735413549006,0.5701,3399.5,3399.2,3.2078]